bitfinex-derivatives/quotes_ETHF0:USTF0_20251211
["timestamp","ask_amount","ask_price","bid_price","bid_amount"]
[1765414428865,7.97120244,3272.1,3272.0,0.15278]
[1765414430565,0.90810244,3272.1,3272.0,0.15278]
[1765414430762,0.90810244,3272.1,3272.0,7.06648]
[1765414430965,0.00223209,3272.3,3272.2,3.58047]
[1765414431268,0.91244146,3272.3,3272.2,3.58047]
[1765414431870,0.91244146,3272.3,3272.2,7.06647]
[1765414432268,0.91244146,3272.3,3272.2,0.15277]
[1765414432571,7.97554146,3272.3,3272.2,0.15277]
[1765414433266,7.0631,3272.2,3272.1,12.436]
[1765414433566,7.97330937,3272.2,3272.1,12.436]
[1765414433864,6.03487421,3272.2,3272.1,12.436]
[1765414434266,0.91020937,3272.2,3272.1,19.50247]
[1765414434465,0.91020937,3272.2,3272.1,12.58877]
[1765414434663,7.97330937,3272.2,3272.1,12.58877]
[1765414435267,0.91020937,3272.2,3272.1,16.01647]
[1765414435469,2.49912089,3272.2,3272.1,16.01647]
[1765414435767,7.97330937,3272.2,3272.1,0.15277]
[1765414436673,9.1356,3271.8,3271.7,3.2078]
[1765414436873,10.04580937,3271.8,3271.7,3.2078]
[1765414437070,7.0631,3271.7,3271.6,0.1528]
[1765414437275,9.5637815,3271.7,3271.6,0.1528]
[1765414437568,9.5637815,3271.7,3271.5,0.00459052]
[1765414437569,7.0631,3271.6,3271.5,0.00459052]
[1765414437774,7.0631,3271.3,3271.1,4.52982]
[1765414437973,9.83970937,3271.2,3271.1,4.52982]
[1765414438664,0.91020937,3271.2,3271.1,11.06192]
[1765414438971,7.32360937,3271.2,3271.1,0.15282]
[1765414439164,9.18360937,3271.2,3271.1,0.15282]
[1765414440562,6.4134,3270.9,3270.8,3.21239052]
[1765414440765,7.32360937,3270.9,3270.8,0.00459052]
[1765414440970,0.91020937,3270.9,3270.8,6.62383052]
[1765414441173,0.91020937,3270.9,3270.8,9.89733052]
[1765414441672,1.59020097,3271.6,3271.5,0.1528]
[1765414441673,3.2269,3271.6,3271.5,0.1528]
[1765414441872,7.31108843,3271.6,3271.5,0.1528]
[1765414443177,4.12458843,3271.6,3271.5,0.1528]
[1765414443372,0.89768843,3271.6,3271.5,19.1169]
[1765414443563,3.21003209,3272.3,3271.9,0.15278]
[1765414443874,3.2269,3272.1,3272.0,0.15278]
[1765414444071,7.31160294,3272.1,3272.0,0.15278]
[1765414444275,0.89820294,3272.1,3272.0,9.89268]
[1765414444471,0.00223209,3272.3,3272.0,9.89268]
[1765414444472,0.00223209,3272.3,3272.2,6.68487]
[1765414444672,0.00459052,3272.5,3272.4,8.68196]
[1765414444879,0.00459052,3272.5,3272.4,13.66599931]
[1765414445274,1.86,3273.6,3273.5,0.15271]
[1765414445472,0.89636446,3273.6,3273.5,15.84231]
[1765414445777,0.89943236,3273.6,3273.5,15.84535567]
[1765414445980,0.0030679,3273.6,3273.5,19.11885567]
[1765414446174,6.65800097,3274.8,3273.5,15.9220245]
[1765414446370,0.00458308,3273.9,3273.8,6.5321]
[1765414446570,0.00458308,3273.9,3273.8,9.7399]
[1765414446783,1.86,3275.3,3273.8,9.7399]
[1765414446784,0.9000039,3274.7,3274.6,3.2586]
[1765414446970,3.2269,3274.7,3274.6,12.43]
[1765414447169,3.23028456,3274.7,3274.6,15.79046]
[1765414447375,6.41678456,3274.7,3274.6,3.36046]
[1765414447573,6.41678456,3274.7,3274.1,3.2078]
[1765414447574,6.4134,3274.2,3274.1,3.2078]
[1765414447876,6.4134,3274.2,3273.7,3.3605]
[1765414448097,0.00458308,3274.5,3273.7,3.3605]
[1765414448283,0.89825654,3274.4,3274.3,3.2586]
[1765414448577,0.00458308,3274.5,3274.4,3.41127]
[1765414448774,0.00458308,3274.5,3274.4,6.68477]
[1765414449175,0.00458308,3274.5,3274.4,20.88800931]
[1765414449376,0.00338456,3274.7,3274.6,6.68476]
[1765414449682,0.00338456,3274.7,3274.6,8.68786]
[1765414451180,0.00458308,3275.0,3274.9,6.39724]
[1765414451476,3.2078,3276.6,3275.9,0.1526]
[1765414451680,3.0831,3276.0,3275.9,12.5776]
[1765414452073,8.2158,3276.0,3275.9,0.1526]
[1765414452273,3.08662821,3276.0,3275.9,0.15574847]
[1765414452485,8.21932821,3276.0,3275.9,0.15574847]
[1765414452672,8.21932821,3276.0,3275.9,0.00314847]
[1765414452872,6.2858,3275.7,3275.6,0.00458308]
[1765414453575,3.0831,3275.7,3275.6,0.00458308]
[1765414453780,3.0831,3275.8,3275.7,0.15261]
[1765414453977,6.2858,3275.8,3275.7,0.15261]
[1765414454177,5.14132821,3276.0,3275.7,0.15261]
[1765414454375,6.2858,3275.8,3275.7,0.15261]
[1765414454579,6.2858,3275.7,3275.6,0.00688505]
[1765414454772,3.0831,3275.7,3275.6,0.00688505]
[1765414454976,6.2858,3275.7,3275.6,0.00688505]
[1765414456484,6.2858,3275.2,3275.1,3.2078]
[1765414456682,6.2858,3274.8,3274.7,0.15265]
[1765414457576,6.2858,3274.8,3274.7,0.15603693]
[1765414458382,12.2858,3274.8,3274.7,0.00338693]
[1765414458788,6.2858,3274.8,3274.7,0.00338693]
[1765414458986,1.93,3275.3,3274.7,0.00338693]
[1765414459281,1.93,3275.3,3275.1,0.15263]
[1765414459485,5.0131,3275.3,3275.2,0.15263]
[1765414459686,3.2078,3275.8,3275.3,0.15262]
[1765414459886,3.0831,3275.4,3275.3,0.15262]
[1765414460084,3.2078,3275.8,3275.7,0.15261]
[1765414460388,0.00295052,3276.3,3275.8,0.1526]
[1765414460682,0.00295052,3276.3,3275.4,3.2078]
[1765414460683,0.00352821,3276.0,3275.9,0.1526]
[1765414460888,0.00352821,3276.0,3275.9,3.3604]
[1765414461284,0.00352821,3276.0,3275.9,0.1526]
[1765414461491,1.93352821,3276.0,3275.9,0.1526]
[1765414462084,1.93352821,3276.0,3275.6,12.416]
[1765414463188,1.93352821,3276.0,3275.6,12.56861]
[1765414463393,1.93352821,3276.0,3275.7,0.15261]
[1765414463587,0.00352821,3276.0,3275.9,0.1526]
[1765414464284,0.00352821,3276.0,3275.9,3.3604]
[1765414464684,1.93352821,3276.0,3275.6,12.416]
[1765414465080,1.01797416,3275.9,3275.6,12.416]
[1765414465290,1.93352821,3276.0,3275.6,12.416]
[1765414465893,1.01817889,3275.9,3275.6,12.416]
[1765414466091,1.93352821,3276.0,3275.6,12.416]
[1765414466386,3.2078,3275.7,3275.3,0.15262]
[1765414467093,1.01835025,3275.6,3275.3,0.15262]
[1765414467281,3.2078,3275.7,3275.3,0.15262]
[1765414467485,1.0190612,3275.6,3275.3,0.15262]
[1765414467687,3.2078,3275.7,3275.4,0.15262]
[1765414468083,1.01910044,3275.6,3275.4,0.15262]
[1765414468291,1.01910044,3275.5,3275.4,0.15262]
[1765414468993,7.10540044,3275.5,3275.4,0.15262]
[1765414469587,6.98100044,3275.5,3275.4,0.15262]
[1765414470193,1.93352821,3276.0,3275.6,0.15261]
[1765414470388,5.9619,3275.7,3275.6,0.15261]
[1765414470587,6.98343958,3275.7,3275.6,0.15261]
[1765414471191,5.9619,3275.1,3275.0,0.15264]
[1765414471895,6.98446168,3275.1,3275.0,0.15264]
[1765414472285,5.9619,3275.1,3275.0,0.15264]
[1765414472491,3.98299441,3275.1,3275.0,0.15264]
[1765414472687,3.98299441,3275.1,3275.0,3.20354]
[1765414472688,1.02429441,3275.1,3275.0,3.20354]
[1765414472989,6.98619151,3275.1,3275.0,0.15264]
[1765414473388,3.52372918,3276.0,3275.0,6.0961]
[1765414473588,1.02631487,3275.9,3275.4,3.2078]
[1765414473783,1.02631487,3275.8,3275.5,0.15261]
[1765414473983,1.02631487,3275.7,3275.6,3.20351]
[1765414474185,1.02631487,3275.7,3275.6,6.24871]
[1765414474385,0.00295052,3276.3,3275.6,6.24871]
[1765414474386,0.00295052,3276.3,3276.2,6.24868]
[1765414474588,1.59020097,3277.7,3276.2,4.98403931]
[1765414474799,3.2078,3277.8,3277.4,1.77623931]
[1765414475091,3.2078,3278.2,3277.5,3.2078]
[1765414475292,4.79800097,3278.6,3277.5,3.2078]
[1765414475484,3.2111422,3278.6,3278.1,0.15249]
[1765414475691,0.00455884,3278.4,3278.1,0.15249]
[1765414476295,0.00455884,3278.4,3278.2,0.15249]
[1765414476693,0.00455884,3278.4,3277.7,0.00457582]
[1765414477396,1.7384,3278.1,3277.7,0.00457582]
[1765414477589,3.2078,3277.8,3277.7,0.00457582]
[1765414477784,4.79800097,3277.8,3277.7,0.00457582]
[1765414477992,4.79800097,3277.8,3277.5,0.0026134]
[1765414478390,1.5885213,3277.6,3277.5,0.0026134]
[1765414478700,1.7384,3277.4,3276.4,3.2078]
[1765414478892,1.58846443,3277.1,3276.4,3.2078]
[1765414479194,1.58846443,3276.8,3276.4,3.21237582]
[1765414479491,3.32686443,3276.8,3276.5,0.15256]
[1765414479694,4.79626443,3276.7,3276.5,0.15256]
[1765414479998,3.2078,3276.7,3276.5,0.15256]
[1765414480192,1.58846443,3276.6,3276.5,0.15256]
[1765414480595,0.0033422,3278.6,3276.8,0.9089]
[1765414480899,0.00455884,3278.4,3278.3,3.2078]
[1765414481205,0.00455884,3278.4,3278.1,0.15249]
[1765414481391,9.15520749,3278.3,3278.1,0.15249]
[1765414481795,9.15520749,3278.3,3278.2,3.2078]
[1765414482100,0.00455884,3278.4,3278.2,3.2078]
[1765414482303,9.15520749,3278.3,3278.2,3.2078]
[1765414482695,1.25947058,3281.2,3278.2,14.35668555]
[1765414482895,0.1957,3279.8,3279.6,1.77623931]
[1765414483197,1.25947058,3281.2,3279.6,1.77623931]
[1765414483399,9.15520749,3279.9,3279.8,0.15241]
[1765414483795,9.35312819,3279.9,3279.8,0.15562384]
[1765414483999,9.35312819,3279.9,3279.8,3.36342384]
[1765414484196,9.15742819,3279.9,3279.8,5.13966315]
[1765414484396,0.0022207,3279.9,3279.8,5.13966315]
[1765414484898,0.0022207,3279.9,3279.8,3.36342384]
[1765414486497,9.35312819,3279.9,3279.8,3.36342384]
[1765414487698,9.35312819,3279.9,3279.8,3.21101384]
[1765414488397,9.15742819,3279.9,3279.5,3.2078]
[1765414488797,0.1957,3279.6,3279.5,3.2078]
[1765414488992,0.1957,3279.6,3279.2,0.15244]
[1765414489197,3.2078,3279.7,3279.2,0.15244]
[1765414489398,0.1957,3279.3,3279.2,0.15472662]
[1765414490206,3.2078,3279.7,3279.6,0.15243]
[1765414490405,9.15742819,3279.9,3279.6,0.15243]
[1765414491002,0.1957,3279.7,3279.6,0.15243]
[1765414492102,0.0022207,3279.9,3279.5,3.2078]
[1765414492305,0.0022207,3279.9,3279.8,0.15242]
[1765414492505,0.00457582,3280.2,3280.1,0.1524]
[1765414492705,0.00457582,3280.2,3280.1,3.3602]
[1765414493309,9.35548331,3280.2,3280.1,0.1524]
[1765414493505,9.35884073,3280.2,3280.1,0.1524]
[1765414493911,9.35884073,3280.2,3279.7,3.2078]
[1765414494103,9.16314073,3280.2,3279.7,3.2078]
[1765414494812,9.16314073,3280.2,3280.1,3.2078]
[1765414495107,0.00793324,3280.2,3280.1,3.3602]
[1765414495311,9.35884073,3280.2,3280.1,3.3602]
[1765414496103,9.35884073,3280.2,3280.1,0.1524]
[1765414496299,9.16314073,3280.2,3280.1,0.1524]
[1765414496505,9.16314073,3280.2,3280.1,3.3602]
[1765414497106,0.00793324,3280.2,3280.1,3.3602]
[1765414497714,3.2078,3281.5,3280.2,1.5212]
[1765414498017,3.2078,3282.7,3281.4,3.2078]
[1765414498212,11.51477795,3283.0,3282.1,0.15231]
[1765414498412,9.15520749,3282.2,3280.7,2.40763471]
[1765414498618,12.36300749,3282.2,3281.4,3.2078]
[1765414498817,2.3466,3281.6,3281.5,0.15690582]
[1765414499114,3.22273786,3281.6,3280.6,0.15238]
[1765414499315,3.2078,3281.3,3280.6,0.15238]
[1765414499616,0.1957,3280.9,3280.6,0.15238]
[1765414499817,3.2078,3281.3,3280.7,0.15237]
[1765414500219,0.1957,3280.8,3280.7,0.16043887]
[1765414500416,3.2078,3281.3,3280.7,0.16043887]
[1765414500808,5.7501,3280.8,3279.9,3.36021]
[1765414501010,5.5544,3280.8,3280.4,0.15239]
[1765414501820,0.1957,3280.5,3280.4,0.15628713]
[1765414502725,0.1957,3280.5,3280.4,0.00389713]
[1765414502914,1.07393072,3280.5,3280.3,0.00457582]
[1765414503227,3.2078,3280.4,3279.6,0.15242]
[1765414503518,2.3466,3280.0,3279.6,0.15242]
[1765414503910,0.1957,3279.7,3279.6,0.15465391]
[1765414504113,0.00284419,3279.7,3279.6,0.15465391]
[1765414504313,9.15805168,3279.7,3279.6,0.15465391]
[1765414504918,9.35375168,3279.7,3279.6,0.15465391]
[1765414505519,9.35375168,3279.7,3279.4,3.2078]
[1765414505715,9.35375168,3279.7,3279.3,0.00457582]
[1765414505716,9.15805168,3279.7,3279.3,0.00457582]
[1765414506223,0.1957,3279.4,3279.3,0.00457582]
[1765414506621,2.3466,3279.2,3278.9,0.15246]
[1765414506827,5.5544,3279.2,3278.9,0.15561643]
[1765414507019,0.1957,3279.0,3278.9,0.15561643]
[1765414507218,2.3466,3278.4,3278.1,0.15249]
[1765414507421,12.36300749,3278.2,3278.1,0.15249]
[1765414507722,9.15520749,3278.2,3278.1,0.15249]
[1765414508024,12.36300749,3278.2,3277.9,0.00457582]
[1765414508219,12.36300749,3278.2,3277.9,0.00820557]
[1765414508416,12.36300749,3278.2,3278.1,0.15249]
[1765414509526,12.36300749,3278.2,3277.9,0.00820557]
[1765414509527,12.55870749,3278.2,3277.9,0.00820557]
[1765414509823,3.2078,3278.2,3277.1,2.0553862]
[1765414510023,12.36300749,3277.8,3277.5,0.15252]
[1765414510724,12.36300749,3277.8,3277.5,0.15609309]
[1765414511423,3.21237582,3278.6,3278.4,0.15248]
[1765414511619,3.21237582,3278.6,3278.5,0.15248]
[1765414511820,3.2078,3279.0,3278.9,0.15246]
[1765414512326,12.36300749,3279.0,3278.9,0.15246]
[1765414513225,12.36300749,3279.0,3278.6,0.00457582]
[1765414513226,12.55870749,3279.0,3278.6,0.00457582]
[1765414513428,12.36300749,3279.0,3278.6,0.00457582]
[1765414513822,0.1957,3278.7,3278.6,0.00457582]
[1765414515130,0.1957,3278.7,3278.6,0.15704582]
[1765414515330,12.36300749,3279.0,3278.6,0.15704582]
[1765414515520,0.1957,3278.7,3278.6,0.15704582]
[1765414515923,12.36300749,3279.0,3278.6,0.00457582]
[1765414516230,0.1957,3278.9,3278.6,0.00457582]
[1765414516530,12.36300749,3279.0,3278.6,0.00457582]
[1765414517126,0.1957,3278.9,3278.6,0.00457582]
[1765414517326,0.1957,3278.9,3278.7,0.15246]
[1765414517729,0.1957,3278.9,3278.8,0.15246]
[1765414520324,2.4456,3278.8,3278.6,0.00457582]
[1765414520722,0.1957,3278.7,3277.9,2.0553862]
[1765414520928,3.2078,3278.3,3277.8,0.15251]
[1765414521226,0.1957,3277.7,3277.1,3.36034]
[1765414521426,0.1957,3277.7,3277.1,3.2078]
[1765414521628,3.2078,3277.9,3277.3,0.15253]
[1765414521928,0.1957,3277.6,3276.7,3.2078]
[1765414522133,3.2078,3277.3,3276.7,3.2078]
[1765414522336,0.1957,3277.0,3276.7,3.2078]
[1765414522527,3.2078,3277.3,3276.7,3.2078]
[1765414522727,0.1957,3276.9,3276.7,3.2078]
[1765414522931,0.00328035,3276.9,3276.7,3.20913644]
[1765414523637,0.1957,3276.8,3276.7,3.20913644]
[1765414523933,0.1957,3276.8,3276.7,0.15389644]
[1765414524530,0.1957,3276.8,3275.9,4.88]
[1765414524531,2.4456,3276.7,3275.9,8.2404]
[1765414525030,3.2078,3276.5,3275.9,8.2404]
[1765414525333,3.2078,3276.5,3276.0,0.15259]
[1765414527131,2.4456,3276.0,3275.5,3.2078]
[1765414527337,3.2078,3276.1,3276.0,0.15259]
[1765414527828,12.55870749,3276.1,3276.0,0.15259]
[1765414528936,20.51560749,3276.1,3276.0,0.15259]
[1765414530438,17.30780749,3276.1,3276.0,0.15259]
[1765414531640,9.35090749,3276.1,3275.5,3.2078]
[1765414531833,9.15520749,3276.1,3275.5,3.2078]
[1765414532430,3.2078,3276.2,3275.5,3.2078]
[1765414532431,3.2078,3276.2,3276.0,4.0117]
[1765414532635,3.2078,3276.6,3276.5,0.15257]
[1765414532935,3.2078,3276.6,3276.5,8.02207]
[1765414533135,3.4035,3276.6,3276.5,8.02207]
[1765414533438,3.4035,3276.6,3276.5,0.15257]
[1765414533439,12.55870749,3276.6,3276.5,0.15257]
[1765414533636,3.4035,3276.6,3276.5,8.02207]
[1765414533942,16.56910749,3276.6,3276.5,0.15257]
[1765414534137,12.55870749,3276.6,3276.5,8.02207]
[1765414535341,9.35090749,3276.6,3276.5,8.02207]
[1765414536739,3.2078,3277.4,3277.3,0.15253]
[1765414537047,7.2182,3277.4,3277.3,0.15253]
[1765414537344,8.0777,3277.1,3276.7,3.2078]
[1765414537842,8.07995239,3277.1,3276.7,3.21108035]
[1765414538143,8.07995239,3277.1,3276.7,0.00328035]
[1765414538547,8.07995239,3277.1,3277.0,0.15254]
[1765414539838,8.07995239,3277.1,3276.7,0.00328035]
[1765414539839,8.0777,3276.8,3276.7,0.00328035]
[1765414540042,8.0777,3276.4,3276.3,0.15258]
[1765414540238,10.0037,3276.0,3275.6,3.2078]
[1765414540447,10.0037,3276.0,3275.7,0.1526]
[1765414540654,10.0037,3276.0,3275.9,10.7296]
[1765414540945,8.0777,3276.0,3275.9,10.7296]
[1765414541340,3.07888459,3276.4,3276.3,8.02208]
[1765414541540,0.00225239,3277.1,3277.0,8.02205]
[1765414541839,2.10108989,3279.6,3277.0,8.02205]
[1765414541840,2.2877,3278.1,3277.9,0.1525]
[1765414542043,3.2078,3278.0,3277.0,3.36034]
[1765414542248,3.2078,3278.0,3277.4,0.15252]
[1765414542538,3.2078,3277.6,3277.4,0.15252]
[1765414542743,3.2078,3277.6,3277.4,0.15477239]
[1765414544238,3.2078,3277.6,3277.5,0.15252]
[1765414544437,3.2078,3277.6,3277.4,0.00225239]
[1765414544636,3.2078,3277.6,3277.5,0.15252]
[1765414545342,2.2877,3277.4,3276.5,3.2078]
[1765414545550,3.2078,3277.0,3276.7,0.15256]
[1765414545839,3.2078,3277.0,3276.9,0.15255]
[1765414546144,5.4955,3277.4,3277.2,0.15253]
[1765414546344,8.0777,3277.3,3277.2,0.15253]
[1765414547952,4.0104,3277.3,3277.2,0.15253]
[1765414548650,8.0777,3276.6,3274.6,2.4283]
[1765414548855,0.00457582,3275.9,3275.7,0.15261]
[1765414549055,0.00457582,3275.9,3275.8,0.1526]
[1765414551452,0.00457582,3275.9,3275.8,4.1643]
[1765414551646,0.00457582,3275.9,3275.8,0.1526]
[1765414551846,8.08227582,3275.9,3275.0,3.2078]
[1765414552044,3.2078,3275.7,3275.0,3.2078]
[1765414552247,3.21002858,3275.7,3275.6,8.02211]
[1765414552752,3.21002858,3275.7,3274.6,5.6361]
[1765414552753,11.28772858,3275.7,3274.6,5.6361]
[1765414552958,3.21002858,3275.7,3274.6,3.2078]
[1765414553250,3.2078,3275.2,3274.9,0.15264]
[1765414554152,3.2078,3275.2,3275.1,0.15263]
[1765414558756,11.4949,3275.2,3275.1,0.15263]
[1765414559662,3.2078,3275.2,3275.1,4.20303]
[1765414560065,7.455,3275.2,3275.1,0.15263]
[1765414560264,11.7317,3275.2,3275.1,0.15263]
[1765414561064,11.7317,3275.2,3274.6,5.2631862]
[1765414561272,3.2078,3274.8,3274.4,5.216]
[1765414561769,11.7317,3274.8,3274.7,0.15265]
[1765414561966,7.455,3274.8,3274.7,0.15265]
[1765414562166,3.2078,3274.8,3274.7,0.15265]
[1765414562868,4.2472,3275.0,3274.9,0.15264]
[1765414563063,8.5239,3275.0,3274.9,0.15264]
[1765414563664,4.2472,3274.2,3274.1,0.15268]
[1765414563859,8.5239,3274.2,3274.1,0.15268]
[1765414565269,7.455,3274.7,3274.6,0.15266]
[1765414565572,3.2078,3275.2,3274.8,0.15265]
[1765414565874,3.2078,3275.2,3274.9,0.15264]
[1765414566674,3.2078,3275.2,3275.1,0.15263]
[1765414566869,7.455,3275.2,3275.1,1.92485156]
[1765414567173,11.7317,3275.2,3275.1,1.92485156]
[1765414568067,7.455,3275.2,3275.1,1.92485156]
[1765414568271,3.2078,3275.2,3275.1,5.97525156]
[1765414568574,3.2078,3275.2,3275.1,1.92485156]
[1765414568773,7.455,3275.2,3275.1,1.92485156]
[1765414569076,0.00222858,3275.7,3275.6,8.19721]
[1765414569270,8.52612858,3275.7,3275.6,1.92483156]
[1765414569669,8.5239,3275.6,3275.5,0.15261]
[1765414570865,8.5239,3275.1,3275.0,3.2078]
[1765414571071,8.5239,3274.9,3274.8,0.15265]
[1765414572175,3.21002858,3275.7,3274.8,4.0504]
[1765414572371,3.21002858,3275.7,3275.6,0.15261]
[1765414572571,8.52612858,3275.7,3275.6,3.36041]
[1765414572874,8.5239,3274.9,3274.8,0.15264]
[1765414574571,0.00222858,3275.7,3274.8,2.4766]
[1765414574572,3.2078,3275.6,3274.8,2.4766]
[1765414575079,8.7421,3275.3,3275.2,0.15263]
[1765414577078,4.215,3274.8,3274.7,3.2078]
[1765414577974,4.215,3275.1,3274.7,3.2078]
[1765414578166,4.215,3275.1,3274.9,1.77222156]
[1765414578371,4.215,3275.2,3275.1,0.15263]
[1765414578772,8.7421,3275.2,3275.1,0.15263]
[1765414579081,8.7421,3275.2,3275.1,3.36043]
[1765414579578,3.2078,3275.6,3275.5,4.41182]
[1765414579778,11.9499,3275.6,3275.5,0.15262]
[1765414580079,8.7421,3275.6,3275.5,0.15262]
[1765414580583,4.215,3275.6,3275.5,0.15262]
[1765414580776,8.7421,3275.6,3275.5,0.15262]
[1765414587890,4.215,3274.3,3274.2,2.56418]
[1765414588190,8.7421,3274.3,3274.2,3.36048]
[1765414588986,3.2078,3274.9,3274.4,0.15267]
[1765414589183,4.2664,3274.5,3274.4,0.15267]
[1765414589385,3.2078,3274.9,3274.4,4.396]
[1765414589690,4.2664,3275.3,3275.2,0.15263]
[1765414590082,8.6502,3275.3,3275.2,0.15263]
[1765414590288,4.2664,3275.3,3275.2,0.15263]
[1765414590496,8.6502,3275.3,3275.2,0.15263]
[1765414596295,4.2664,3274.3,3274.2,5.8461]
[1765414596494,11.858,3274.9,3274.8,0.15265]
[1765414597599,8.6502,3274.2,3274.1,0.15268]
[1765414598396,4.2664,3274.2,3274.1,0.15268]
[1765414600101,3.2078,3274.9,3274.1,4.54868]
[1765414600296,4.2664,3274.2,3274.1,0.15268]
[1765414600601,8.6502,3274.2,3274.1,0.15268]
[1765414602898,3.2078,3274.5,3273.4,3.2078]
[1765414602899,8.6502,3273.5,3273.4,3.2078]
[1765414604396,8.65477582,3273.8,3273.7,0.1527]
[1765414606894,11.86257582,3273.8,3273.7,0.1527]
[1765414607294,8.6502,3273.1,3273.0,5.6193]
[1765414607499,8.65258949,3273.1,3273.0,3.21015335]
[1765414607705,11.86257582,3273.8,3273.7,0.1527]
[1765414608702,11.86558548,3273.8,3273.7,0.1527]
[1765414609099,8.6502,3273.1,3273.0,2.64065335]
[1765414609301,8.6502,3273.1,3273.0,0.09907905]
[1765414609598,3.2078,3273.4,3272.5,0.15276]
[1765414609804,8.6502,3272.6,3272.5,0.15276]
[1765414610398,8.6502,3272.6,3272.5,0.15514949]
[1765414610603,8.6502,3273.1,3273.0,2.79103]
[1765414610803,8.6502,3273.1,3273.0,0.15273]
[1765414611204,4.2664,3273.1,3273.0,7.18703]
[1765414611407,8.6502,3273.5,3273.4,0.15271]
[1765414613211,8.6502,3272.8,3272.7,3.2078]
[1765414613412,8.6502,3272.8,3272.7,3.36055]
[1765414614310,8.6502,3272.8,3272.7,0.15275]
[1765414614514,11.858,3272.8,3272.7,0.15275]
[1765414618914,7.6953,3272.0,3271.5,2.6383]
[1765414619115,7.6953,3271.3,3271.2,0.15282]
[1765414619512,3.2078,3271.5,3271.2,7.6428]
[1765414619714,3.8846,3271.4,3271.3,3.8834]
[1765414619911,3.8870906,3271.4,3271.3,0.15281]
[1765414620215,0.0024906,3271.4,3271.3,7.79561]
[1765414620513,3.8870906,3271.4,3271.3,4.03621]
[1765414620718,3.8870906,3271.4,3271.3,0.15281]
[1765414621120,7.6977906,3271.4,3271.3,0.15281]
[1765414624418,0.0024906,3271.4,3271.3,9.56783156]
[1765414624615,3.8870906,3271.4,3271.3,9.56783156]
[1765414624817,7.6977906,3271.4,3271.3,5.80843156]
[1765414625210,3.2078,3272.0,3271.9,0.15278]
[1765414625416,3.2078,3272.0,3271.9,7.79558]
[1765414626319,3.21086477,3272.0,3271.9,7.79558]
[1765414628427,0.00306477,3272.0,3271.9,15.86044765]
[1765414629730,3.2078,3272.5,3272.4,7.79556]
[1765414630721,3.21124885,3272.5,3272.4,7.79556]
[1765414632326,0.00344885,3272.5,3272.4,7.79556]
[1765414632723,0.00344885,3272.5,3272.4,11.00336]
[1765414633827,0.00344885,3272.5,3272.4,7.79556]
[1765414635736,0.00458288,3272.8,3272.7,7.79555]
[1765414636845,0.00696215,3272.8,3272.7,7.79555]
[1765414638935,3.2078,3274.0,3273.9,7.79549]
[1765414639124,3.8846,3274.3,3274.2,4.03607]
[1765414639326,3.8846,3274.3,3274.2,7.79547]
[1765414639527,7.6953,3274.7,3274.6,0.15266]
[1765414639731,4.95768264,3274.7,3274.6,4.03606]
[1765414640035,10.90768288,3275.0,3274.9,0.15264]
[1765414640338,10.91037321,3275.0,3274.9,0.15264]
[1765414640636,3.89187321,3275.0,3274.9,7.79544]
[1765414640937,0.00727321,3275.0,3274.9,7.79544]
[1765414642541,9.96387321,3275.0,3274.9,0.15264]
[1765414642845,7.72477321,3275.0,3274.9,0.15264]
[1765414645139,9.73307321,3275.0,3274.9,0.15264]
[1765414646142,7.6065,3274.4,3274.3,0.15725288]
[1765414647245,7.6065,3274.4,3274.3,0.15985463]
[1765414647844,2.1556,3274.5,3273.8,3.2078]
[1765414647845,7.6065,3273.9,3273.8,3.2078]
[1765414648347,7.6652,3273.9,3273.8,3.2078]
[1765414648940,7.6652,3273.9,3273.8,3.21028299]
[1765414649136,3.7736,3273.9,3273.8,7.04198299]
[1765414649646,3.2078,3274.6,3273.8,7.04198299]
[1765414649647,7.868,3274.2,3274.1,0.15268]
[1765414654751,7.868,3273.9,3273.8,3.21028299]
[1765414655045,3.9764,3273.9,3273.8,7.04198299]
[1765414655546,2.2403,3274.5,3274.1,0.15268]
[1765414655755,7.868,3274.2,3274.1,0.15268]
[1765414656058,3.9764,3274.2,3274.1,7.58618]
[1765414656247,7.868,3274.2,3274.1,0.15268]
[1765414656448,3.9764,3274.2,3274.1,3.98438]
[1765414656650,3.9764,3274.2,3274.1,7.58618]
[1765414656951,7.868,3274.2,3274.1,3.98438]
[1765414657348,3.9764,3274.1,3274.0,6.0114]
[1765414657554,3.9764,3274.1,3274.0,9.6132]
[1765414657756,3.9764,3274.4,3274.3,3.8317]
[1765414658249,3.9764,3274.4,3274.3,7.4335]
[1765414658447,3.9764,3274.4,3274.3,3.8317]
[1765414658645,7.868,3274.4,3274.3,3.98437]
[1765414659960,3.9764,3274.4,3274.3,3.98437]
[1765414660159,3.9764,3274.4,3274.3,7.58617]
[1765414660360,5.22337321,3275.0,3274.6,3.98436]
[1765414660361,7.868,3274.7,3274.6,3.98436]
[1765414660853,7.868,3274.7,3274.6,0.15266]
[1765414664060,4.99137321,3275.0,3273.8,3.21028299]
[1765414664061,7.868,3273.9,3273.8,3.21028299]
[1765414664966,7.868,3273.9,3273.8,7.04198299]
[1765414665263,7.868,3274.4,3274.3,0.15267]
[1765414665961,3.9764,3274.4,3274.3,3.98437]
[1765414666156,7.868,3274.4,3274.3,3.98437]
[1765414666364,7.868,3274.8,3274.7,0.15265]
[1765414666871,7.868,3274.8,3274.7,3.98435]
[1765414667060,11.08307321,3275.0,3274.9,3.98434]
[1765414667456,11.08307321,3275.0,3274.9,7.58614]
[1765414667862,3.21507321,3275.0,3274.9,7.58614]
[1765414668066,7.19147321,3275.0,3274.9,7.58614]
[1765414668362,3.98367321,3275.0,3274.9,7.58614]
[1765414669263,0.00727321,3275.0,3274.9,7.58614]
[1765414670862,3.98367321,3275.0,3274.9,7.58614]
[1765414671471,0.00727321,3275.0,3274.9,7.58614]
[1765414671664,3.98367321,3275.0,3274.9,7.58614]
[1765414672463,0.00727321,3275.0,3274.9,7.58614]
[1765414672665,0.00727321,3275.0,3274.8,3.2078]